lending/lending_fUSD_20240605
["ID","MTS","AMOUNT","RATE_DAILY","PERIOD"]
[328605899,1717602647601,-508.76662108,0.00028479,4]
[328605900,1717602647611,-500.0,0.00028479,4]
[328605901,1717602647620,-500.0,0.00028479,4]
[328605902,1717602647630,-485.1898975,0.00028479,4]
[328605903,1717602647639,-513.46986555,0.00028479,4]
[328605904,1717602647649,-520.94097254,0.00028479,4]
[328605905,1717602647659,-506.46976758,0.00028479,4]
[328605906,1717602647667,-520.5812079,0.00028479,4]
[328605907,1717602647677,-547.11209287,0.00028479,4]
[328605908,1717602647687,-534.08492191,0.00028479,4]
[328605909,1717602647697,-500.0,0.00028479,4]
[328605910,1717602647706,-508.30344572,0.00028479,4]
[328605911,1717602647716,-500.0,0.00028479,4]
[328605912,1717602647731,-426.74588552,0.00028479,4]
[328605913,1717602647741,-544.34088335,0.00028479,4]
[328605914,1717602647751,-552.13102972,0.00028479,4]
[328605915,1717602647760,-531.20925155,0.00028479,4]
[328605916,1717602647769,-529.1922346,0.00028479,4]
[328605917,1717602647783,-534.2455389,0.00028479,4]
[328605918,1717602647793,-500.0,0.00028479,4]
[328605919,1717602647802,-500.0,0.00028479,4]
[328605920,1717602647814,-278.29575173,0.00028479,4]
[328605921,1717602647833,-424.94549841,0.00028479,4]
[328605922,1717602647851,-532.79924583,0.00028479,4]
[328605923,1717602647869,-288.312959,0.00028479,7]
[328605924,1717602647887,-514.14480398,0.00028479,4]
[328605925,1717602647906,-581.56168328,0.00028479,4]
[328605926,1717602647924,-500.0,0.00028479,4]
[328605927,1717602647938,-500.0,0.00028479,4]
[328605928,1717602647957,-500.0,0.00028479,4]
[328605929,1717602647977,-250.0,0.00028479,4]
[328605930,1717602647990,-375.02273218,0.00028479,4]
[328605931,1717602648005,-326.41545307,0.00028479,4]
[328605932,1717602648022,-500.0,0.00028479,4]
[328605933,1717602648041,-500.0,0.00028479,4]
[328605934,1717602648054,-500.0,0.00028479,4]
[328605935,1717602648068,-573.92869327,0.00028479,4]
[328605936,1717602648084,-500.0,0.00028479,4]
[328605937,1717602648097,-500.0,0.00028479,4]
[328605938,1717602648111,-529.52824295,0.00028479,4]
[328605939,1717602648124,-500.0,0.00028479,4]
[328605940,1717602648137,-546.57465559,0.00028479,4]
[328605941,1717602648152,-500.0,0.00028479,4]
[328605942,1717602648165,-500.0,0.00028479,4]
[328605943,1717602648178,-514.7753431,0.00028479,4]
[328605944,1717602648192,-500.0,0.00028479,4]
[328605945,1717602648206,-500.0,0.00028479,4]
[328605946,1717602648221,-550.20038713,0.00028479,4]
[328605947,1717602648235,-527.71665048,0.00028479,4]
[328605948,1717602648249,-539.47836874,0.00028479,4]
[328605949,1717602648263,-525.10463053,0.00028479,4]
[328605950,1717602648278,-298.04945712,0.00028479,4]
[328605951,1717602648293,-500.0,0.00028479,4]
[328605952,1717602648307,-521.49365166,0.00028479,4]
[328605953,1717602648320,-500.0,0.00028479,4]
[328605954,1717602648334,-500.0,0.00028479,4]
[328605955,1717602648348,-500.0,0.00028479,4]
[328605956,1717602648361,-521.31009367,0.00028479,4]
[328605957,1717602648375,-500.0,0.00028479,4]
[328605958,1717602648387,-500.0,0.00028479,4]
[328605959,1717602648401,-521.15312035,0.00028479,4]
[328605960,1717602648414,-500.0,0.00028479,4]
[328605961,1717602648427,-500.0,0.00028479,4]
[328605962,1717602648440,-514.8121835,0.00028479,4]
[328605963,1717602648453,-516.58251075,0.00028479,4]
[328605964,1717602648467,-500.0,0.00028479,4]
[328605965,1717602648480,-500.0,0.00028479,4]
[328605966,1717602648494,-522.32760115,0.00028479,4]
[328605967,1717602648508,-1565.72,0.00028479,4]
[328605968,1717602648518,-1565.72,0.00028479,4]
[328605969,1717602648527,-514.0,0.00028479,4]
[328605970,1717602648536,-516.15120479,0.00028479,4]
[328605971,1717602648545,-500.0,0.00028479,2]
[328605972,1717602648554,-500.0,0.00028479,2]
[328605973,1717602648563,-516.39113831,0.00028479,4]
[328605974,1717602648573,-521.61307706,0.00028479,4]
[328605975,1717602648582,-529.69514961,0.00028479,4]
[328605976,1717602648592,-500.0,0.00028479,4]
[328605977,1717602648601,-523.46345829,0.00028479,4]
[328605978,1717602648610,-515.01403189,0.00028479,4]
[328605979,1717602648619,-511.88238638,0.00028479,4]
[328605980,1717602648628,-506.73171123,0.00028479,4]
[328605981,1717602648637,-525.68254127,0.00028479,4]
[328605982,1717602648646,-517.48358696,0.00028479,4]
[328605983,1717602648657,-513.84797913,0.00028479,4]
[328605984,1717602648666,-519.16996681,0.00028479,4]
[328605985,1717602648675,-523.93212454,0.00028479,4]
[328605986,1717602648684,-522.43644378,0.00028479,4]
[328605987,1717602648693,-520.50816859,0.00028479,4]
[328605988,1717602648703,-530.54062391,0.00028479,2]
[328605989,1717602648712,-500.0,0.00028479,4]
[328605990,1717602648724,-524.2281165,0.00028479,4]
[328605991,1717602648733,-500.0,0.00028479,4]
[328605992,1717602648969,-521.8129428,0.00028479,4]
[328605993,1717602648984,-519.38143798,0.00028479,4]
[328605994,1717602648994,-151.0,0.00028479,7]
[328605995,1717602649004,-151.0,0.00028479,7]
[328605996,1717602649013,-500.0,0.00028479,4]
[328605997,1717602649023,-524.37667738,0.00028479,4]
[328605998,1717602649032,-594.81952427,0.00028479,4]
[328605999,1717602649041,-500.0,0.00028479,4]
[328606000,1717602649050,-500.0,0.00028479,4]
[328606001,1717602649059,-509.90354276,0.00028479,4]
[328606002,1717602649068,-500.0,0.00028479,4]
[328606003,1717602649077,-67.76694832,0.00028479,4]
[328606004,1717602649307,-438.14307383,0.00028479,4]
[328606005,1717602649316,-517.39703718,0.00028479,4]
[328606006,1717602649325,-500.0,0.00028479,4]
[328606007,1717602649335,-500.0,0.00028479,4]
[328606008,1717602649344,-279.31261235,0.00028479,4]
[328606009,1717602649353,-500.0,0.00028479,4]
[328606010,1717602649362,-500.0,0.00028479,4]
[328606011,1717602649371,-504.02084489,0.00028479,4]
[328606012,1717602649380,-506.37621283,0.00028479,4]
[328606013,1717602649389,-326.74185483,0.00028479,4]
[328606014,1717602649398,-505.2920174,0.00028479,4]
[328606015,1717602649407,-500.0,0.00028479,4]
[328606016,1717602649416,-538.01736496,0.00028479,4]
[328606017,1717602649426,-500.0,0.00028479,4]
[328606018,1717602649435,-518.00254908,0.00028479,4]
[328606019,1717602649444,-507.13670372,0.00028479,4]
[328606020,1717602649453,-524.08890994,0.00028479,4]
[328606021,1717602649462,-500.0,0.00028479,4]
[328606022,1717602649472,-500.0,0.00028479,4]
[328606023,1717602649482,-513.58590342,0.00028479,4]
[328606024,1717602649491,-516.01160868,0.00028479,4]
[328606025,1717602649501,-527.17476893,0.00028479,4]
[328606026,1717602649510,-509.98725654,0.00028479,4]
[328606027,1717602649521,-522.68882156,0.00028479,4]
[328606028,1717602649531,-532.96850656,0.00028479,4]
[328606029,1717602649541,-520.75762331,0.00028479,4]
[328606030,1717602649551,-510.64564482,0.00028479,4]
[328606031,1717602649562,-500.0,0.00028479,4]
[328606032,1717602649572,-457.5331105,0.00028479,4]
[328606033,1717602649581,-507.18405625,0.00028479,4]
[328606034,1717602649591,-519.81223227,0.00028479,4]
[328606035,1717602649602,-524.25687464,0.00028479,4]
[328606036,1717602649611,-500.0,0.00028479,4]
[328606037,1717602649620,-518.44177929,0.00028479,4]
[328606038,1717602649630,-553.97412749,0.00028479,4]
[328606039,1717602649639,-212.578854,0.00028479,7]
[328606040,1717602649648,-212.578854,0.00028479,7]
[328606041,1717602649658,-256.58991772,0.00028486,2]
[328606042,1717602649669,-296.9,0.000285,4]
[328606043,1717602649679,-5822.0829587,0.00028517,2]
[328606044,1717602649690,-571.04,0.0002856,2]
[328606045,1717602649700,-500.0,0.0002856,4]
[328606046,1717602649708,-264.28530766,0.00028561,4]
[328606047,1717602649718,-500.0,0.00028561,4]
[328606048,1717602649728,-596.7,0.00028561,4]
[328606049,1717602649737,-500.0,0.00028561,4]
[328606050,1717602649746,-3495.38,0.00028561,4]
[328606051,1717602649756,-500.0,0.00028561,4]
[328606052,1717602649765,-623.74,0.00028561,4]
[328606053,1717602649780,-500.0,0.00028561,4]
[328606054,1717602649790,-531.31780411,0.00028561,4]
[328606055,1717602649801,-551.84098052,0.00028561,4]
[328606056,1717602649811,-500.0,0.00028561,4]
[328606057,1717602649821,-500.0,0.00028561,4]
[328606058,1717602649831,-500.0,0.00028561,4]
[328606059,1717602649840,-532.16999699,0.00028561,4]
[328606060,1717602649851,-1141.32,0.00028561,4]
[328606061,1717602649862,-639.65503417,0.00028561,4]
[328606062,1717602649871,-516.88119147,0.00028561,4]
[328606063,1717602649880,-530.89615058,0.00028561,4]
[328606064,1717602649889,-500.0,0.00028561,4]
[328606065,1717602649899,-500.0,0.00028561,4]
[328606066,1717602649908,-417.31757026,0.00028561,4]
[328606067,1717602649917,-500.0,0.00028561,4]
[328606068,1717602649926,-500.0,0.00028561,4]
[328606069,1717602649936,-515.87158884,0.00028561,4]
[328606070,1717602649946,-3589.35,0.00028561,4]
[328606071,1717602649956,-500.0,0.00028561,4]
[328606072,1717602649967,-513.06460421,0.00028561,4]
[328606073,1717602649978,-527.5692296,0.00028561,4]
[328606074,1717602649988,-518.81093215,0.00028561,4]
[328606075,1717602649997,-524.5449277,0.00028561,4]
[328606076,1717602650006,-1397.27,0.00028561,4]
[328606077,1717602650015,-522.68988066,0.00028561,4]
[328606078,1717602650025,-500.0,0.00028561,4]
[328606079,1717602650036,-429.63360606,0.00028561,4]
[328606080,1717602650045,-1204.39,0.00028561,4]
[328606081,1717602650054,-539.0252409,0.00028561,4]
[328606082,1717602650063,-500.0,0.00028561,4]
[328606083,1717602650073,-1771.71,0.00028561,4]
[328606084,1717602650082,-500.0,0.00028561,4]
[328606085,1717602650091,-500.0,0.00028561,4]
[328606086,1717602650100,-516.2397394,0.00028561,4]
[328606087,1717602650110,-500.0,0.00028561,4]
[328606088,1717602650119,-514.48,0.00028561,4]
[328606089,1717602650129,-500.0,0.00028561,4]
[328606090,1717602650138,-156.92989082,0.00028561,4]
[328606091,1717602650147,-519.70447995,0.00028561,4]
[328606092,1717602650157,-2284.97,0.00028561,4]
[328606093,1717602650167,-500.0,0.00028561,4]
[328606094,1717602650176,-514.05485746,0.00028561,4]
[328606095,1717602650185,-529.46267694,0.00028561,4]
[328606096,1717602650194,-354.40288745,0.00028561,4]
[328606097,1717602650203,-500.0,0.00028561,4]
[328606098,1717602650212,-3193.29,0.00028561,4]
[328606099,1717602650224,-500.0,0.00028561,4]
[328606100,1717602650233,-166.78775578,0.00028561,4]
[328606101,1717602650242,-212.578854,0.00028561,7]
[328606102,1717602650251,-1249.98,0.00028561,4]
[328606103,1717602650260,-212.578854,0.00028561,7]
[328606104,1717602650270,-500.0,0.00028561,4]
[328606105,1717602650279,-500.0,0.00028561,4]
[328606106,1717602650288,-696.15,0.00028561,4]
[328606107,1717602650298,-1378.29,0.00028561,4]
[328606108,1717602650308,-500.0,0.00028561,4]
[328606109,1717602650317,-500.0,0.00028561,4]
[328606110,1717602650326,-516.29,0.00028561,4]
[328606111,1717602650336,-500.0,0.00028561,4]
[328606112,1717602650346,-287.00071831,0.00028569,2]
[328606113,1717602650355,-800.0,0.00028575,2]
[328606114,1717602650364,-207.79,0.00028577,4]
[328606115,1717602650374,-500.0,0.00028577,4]
[328606116,1717602650383,-151.0,0.00028577,7]
[328606117,1717602650393,-500.0,0.00028577,4]
[328606118,1717602650402,-500.0,0.00028577,4]
[328606119,1717602650412,-500.0,0.00028577,4]
[328606120,1717602650422,-506.34875543,0.00028577,4]
[328606121,1717602650431,-500.0,0.00028577,4]
[328606122,1717602650440,-500.0,0.00028577,4]
[328606123,1717602650450,-500.0,0.00028577,4]
[328606124,1717602650459,-530.62202728,0.00028577,4]
[328606125,1717602650468,-500.0,0.00028577,4]
[328606126,1717602650479,-549.96527746,0.00028577,4]
[328606127,1717602650489,-500.0,0.00028577,4]
[328606128,1717602650498,-500.0,0.00028577,4]
[328606129,1717602650507,-537.01429079,0.00028577,4]
[328606130,1717602650517,-546.0396304,0.00028577,4]
[328606131,1717602650526,-541.45073297,0.00028577,4]
[328606132,1717602650535,-500.0,0.00028577,4]
[328606133,1717602650544,-500.0,0.00028577,4]
[328606134,1717602650553,-500.0,0.00028577,4]
[328606135,1717602650563,-150.0,0.00028577,4]
[328606136,1717602650572,-520.46814134,0.00028577,4]
[328606137,1717602650581,-500.0,0.00028577,4]
[328606138,1717602650590,-500.0,0.00028577,4]
[328606139,1717602650599,-500.0,0.00028577,4]
[328606140,1717602650608,-500.0,0.00028577,4]
[328606141,1717602650617,-500.0,0.00028577,4]
[328606142,1717602650626,-500.0,0.00028577,4]
[328606143,1717602650635,-520.17813629,0.00028577,4]
[328606144,1717602650645,-561.12345693,0.00028577,4]
[328606145,1717602650655,-500.0,0.00028577,4]
[328606146,1717602650665,-500.0,0.00028577,4]
[328606147,1717602650674,-500.0,0.00028577,4]
[328606148,1717602650684,-500.0,0.00028577,4]
[328606149,1717602650694,-511.64298999,0.00028577,4]
[328606150,1717602650704,-526.96762225,0.00028577,4]
[328606151,1717602650714,-522.38632887,0.00028577,4]
[328606152,1717602650726,-500.0,0.00028577,4]
[328606153,1717602650735,-500.0,0.00028577,4]
[328606154,1717602650744,-256.78180953,0.00028577,4]
[328606155,1717602650753,-500.0,0.00028577,4]
[328606156,1717602650763,-500.0,0.00028577,4]
[328606157,1717602650773,-521.73712666,0.00028577,4]
[328606158,1717602650787,-558.3221744,0.00028577,4]
[328606159,1717602650796,-500.0,0.00028577,4]
[328606160,1717602650806,-500.0,0.00028577,4]
[328606161,1717602650815,-550.63560311,0.00028577,4]
[328606162,1717602650826,-500.0,0.00028577,4]
[328606163,1717602650835,-500.0,0.00028577,4]
[328606164,1717602650845,-586.82849296,0.00028577,4]
[328606165,1717602650855,-556.34760615,0.00028577,4]
[328606166,1717602650865,-287.93596144,0.00028577,4]
[328606167,1717602650874,-500.0,0.00028577,4]
[328606168,1717602650883,-500.0,0.00028577,4]
[328606169,1717602650892,-500.0,0.00028577,4]
[328606170,1717602650901,-500.0,0.00028577,4]
[328606171,1717602650911,-1787.41,0.00028577,4]
[328606172,1717602650920,-596.7,0.00028577,4]
[328606173,1717602650929,-500.0,0.00028577,4]
[328606174,1717602650939,-500.0,0.00028577,4]
[328606175,1717602650950,-500.0,0.00028577,4]
[328606176,1717602650959,-3495.38,0.00028577,4]
[328606177,1717602650970,-500.0,0.00028577,4]
[328606178,1717602650979,-500.0,0.00028577,4]
[328606179,1717602650988,-500.0,0.00028577,4]
[328606180,1717602650997,-500.0,0.00028577,4]
[328606181,1717602651006,-500.0,0.00028577,4]
[328606182,1717602651016,-623.74,0.00028577,4]
[328606183,1717602651025,-500.0,0.00028577,4]
[328606184,1717602651035,-473.70439169,0.00028577,4]
[328606185,1717602651044,-500.0,0.00028577,4]
[328606186,1717602651054,-357.84252857,0.00028577,4]
[328606187,1717602651063,-578.71,0.00028577,4]
[328606188,1717602651073,-500.0,0.00028577,4]
[328606189,1717602651082,-500.0,0.00028577,4]
[328606190,1717602651092,-500.0,0.00028577,4]
[328606191,1717602651101,-500.0,0.00028577,4]
[328606192,1717602651109,-1141.32,0.00028577,4]
[328606193,1717602651119,-500.0,0.00028577,4]
[328606194,1717602651129,-505.41,0.00028577,4]
[328606195,1717602651138,-500.0,0.00028577,4]
[328606196,1717602651147,-500.0,0.00028577,4]
[328606197,1717602651157,-524.83954731,0.00028577,4]
[328606198,1717602651166,-500.0,0.00028577,4]
[328606199,1717602651176,-528.3298392,0.00028577,4]
[328606200,1717602651186,-500.0,0.00028577,4]
[328606201,1717602651196,-500.0,0.00028577,4]
[328606202,1717602651205,-500.0,0.00028577,4]
[328606203,1717602651215,-531.9907728,0.00028577,4]
[328606204,1717602651228,-528.92504829,0.00028577,4]
[328606205,1717602651238,-522.05966201,0.00028577,4]
[328606206,1717602651247,-3589.35,0.00028577,4]
[328606207,1717602651257,-500.0,0.00028577,4]
[328606208,1717602651266,-500.0,0.00028577,4]
[328606209,1717602651277,-500.0,0.00028577,4]
[328606210,1717602651286,-500.0,0.00028577,4]
[328606211,1717602651296,-535.93988031,0.00028577,4]
[328606212,1717602651306,-500.0,0.00028577,4]
[328606213,1717602651316,-500.0,0.00028577,4]
[328606214,1717602651326,-500.0,0.00028577,4]
[328606215,1717602651335,-1397.27,0.00028577,4]
[328606216,1717602651345,-500.0,0.00028577,4]
[328606217,1717602651355,-500.0,0.00028577,4]
[328606218,1717602651364,-500.0,0.00028577,4]
[328606219,1717602651374,-500.0,0.00028577,4]
[328606220,1717602651383,-500.0,0.00028577,4]
[328606221,1717602651393,-500.0,0.00028577,4]
[328606222,1717602651402,-959.58,0.00028577,4]
[328606223,1717602651411,-792.01,0.00028577,4]
[328606224,1717602651421,-792.01,0.00028577,4]
[328606225,1717602651430,-1204.39,0.00028577,4]
[328606226,1717602651439,-500.0,0.00028577,4]
[328606227,1717602651448,-500.0,0.00028577,4]
[328606228,1717602651458,-500.0,0.00028577,4]
[328606229,1717602651467,-500.0,0.00028577,4]
[328606230,1717602651480,-500.0,0.00028577,4]
[328606231,1717602651489,-500.0,0.00028577,4]
[328606232,1717602651499,-1771.71,0.00028577,4]
[328606233,1717602651508,-500.0,0.00028577,4]
[328606234,1717602651518,-655.21,0.00028577,4]
[328606235,1717602651527,-655.21,0.00028577,4]
[328606236,1717602651537,-514.25547235,0.00028577,4]
[328606237,1717602651546,-500.0,0.00028577,4]
[328606238,1717602651555,-801.84,0.00028577,4]
[328606239,1717602651565,-540.91921979,0.00028577,4]
[328606240,1717602651574,-500.0,0.00028577,4]
[328606241,1717602651585,-500.0,0.00028577,4]
[328606242,1717602651595,-500.0,0.00028577,4]
[328606243,1717602651605,-514.48,0.00028577,4]
[328606244,1717602651615,-500.0,0.00028577,4]
[328606245,1717602651626,-500.0,0.00028577,4]
[328606246,1717602651635,-500.0,0.00028577,4]
[328606247,1717602651644,-590.94,0.00028577,4]
[328606248,1717602651655,-500.0,0.00028577,4]
[328606249,1717602651664,-500.0,0.00028577,4]
[328606250,1717602651674,-712.31,0.00028577,4]
[328606251,1717602651684,-500.0,0.00028577,4]
[328606252,1717602651693,-712.31,0.00028577,4]
[328606253,1717602651703,-327.13231303,0.00028577,4]
[328606254,1717602651713,-500.0,0.00028577,4]
[328606255,1717602651725,-500.0,0.00028577,4]
[328606256,1717602651734,-505.32967473,0.00028577,4]
[328606257,1717602651744,-2284.97,0.00028577,4]
[328606258,1717602651753,-582.21334735,0.00028577,4]
[328606259,1717602651893,-397.02249635,0.00028577,4]
[328606260,1717602651905,-500.0,0.00028577,4]
[328606261,1717602651915,-500.0,0.00028577,4]
[328606262,1717602651924,-2317.44,0.00028577,4]
[328606263,1717602651934,-2317.44,0.00028577,4]
[328606264,1717602651945,-500.0,0.00028577,4]
[328606265,1717602651955,-3193.29,0.00028577,4]
[328606266,1717602651965,-625.55,0.00028577,4]
[328606267,1717602651976,-1757.88,0.00028577,4]
[328606268,1717602651985,-1757.88,0.00028577,4]
[328606269,1717602651995,-500.0,0.00028577,4]
[328606270,1717602652004,-500.0,0.00028577,4]
[328606271,1717602652014,-500.0,0.00028577,4]
[328606272,1717602652025,-502.83,0.00028577,4]
[328606273,1717602652035,-500.0,0.00028577,4]
[328606274,1717602652045,-500.0,0.00028577,4]
[328606275,1717602652054,-500.0,0.00028577,4]
[328606276,1717602652063,-500.0,0.00028577,4]
[328606277,1717602652073,-500.0,0.00028577,4]
[328606278,1717602652082,-1249.98,0.00028577,4]
[328606279,1717602652091,-500.0,0.00028577,4]
[328606280,1717602652101,-500.0,0.00028577,4]
[328606281,1717602652110,-500.0,0.00028577,4]
[328606282,1717602652119,-500.0,0.00028577,4]
[328606283,1717602652128,-500.0,0.00028577,4]
[328606284,1717602652138,-696.15,0.00028577,4]
[328606285,1717602652148,-7538.74,0.00028577,4]
[328606286,1717602652157,-7538.74,0.00028577,4]
[328606287,1717602652167,-385.12084843,0.00028577,4]
[328606288,1717602652176,-500.0,0.00028577,4]
[328606289,1717602652186,-1378.29,0.00028577,4]
[328606290,1717602652195,-600.13397882,0.00028577,4]
[328606291,1717602652205,-707.96,0.00028577,4]
[328606292,1717602652214,-500.0,0.00028577,4]
[328606293,1717602652227,-546.18730191,0.00028577,4]
[328606294,1717602652237,-577.02,0.00028577,4]
[328606295,1717602652246,-500.0,0.00028577,4]
[328606296,1717602652255,-500.0,0.00028577,4]
[328606297,1717602652265,-500.0,0.00028577,4]
[328606298,1717602652275,-500.0,0.00028577,4]
[328606299,1717602652284,-421.66906461,0.00028577,4]
[328606300,1717602652294,-516.29,0.00028577,4]
[328606301,1717602652303,-500.0,0.00028577,4]
[328606302,1717602652314,-2785.56,0.00028577,4]
[328606303,1717602652323,-522.62542181,0.00028577,4]
[328606304,1717602652333,-1211.95,0.00028577,4]
[328606305,1717602652343,-1211.95,0.00028577,4]
[328606306,1717602652352,-542.53,0.00028577,4]
[328606307,1717602652362,-208.72501019,0.00028578,2]
[328606308,1717602652371,-5889.05435153,0.00028578,2]
[328606309,1717602652381,-279.15,0.00028578,7]
[328606310,1717602652390,-500.0,0.00028578,4]
[328606311,1717602652400,-500.0,0.00028578,4]
[328606312,1717602652409,-500.0,0.00028578,4]
[328606313,1717602652419,-500.0,0.00028578,4]
[328606314,1717602652428,-500.0,0.00028578,4]
[328606315,1717602652437,-500.0,0.00028578,4]
[328606316,1717602652447,-500.0,0.00028578,4]
[328606317,1717602652456,-500.0,0.00028578,4]
[328606318,1717602652465,-453.16,0.00028578,4]
[328606319,1717602652478,-573.56251658,0.00028578,4]
[328606320,1717602652487,-500.0,0.00028578,4]
[328606321,1717602652497,-500.0,0.00028578,4]
[328606322,1717602652506,-500.0,0.00028578,4]
[328606323,1717602652517,-500.0,0.00028578,4]
[328606324,1717602652526,-500.0,0.00028578,4]
[328606325,1717602652536,-500.0,0.00028578,4]
[328606326,1717602652545,-500.0,0.00028578,4]
[328606327,1717602652554,-500.0,0.00028578,4]
[328606328,1717602652564,-500.0,0.00028578,4]
[328606329,1717602652573,-500.0,0.00028578,4]
[328606330,1717602652583,-534.51928572,0.00028578,4]
[328606331,1717602652592,-207.07280371,0.00028578,4]
[328606332,1717602652601,-500.0,0.00028578,4]
[328606333,1717602652610,-500.0,0.00028578,4]
[328606334,1717602652619,-178.83431826,0.00028578,4]
[328606335,1717602652628,-500.0,0.00028578,4]
[328606336,1717602652637,-500.0,0.00028578,4]
[328606337,1717602652646,-500.0,0.00028578,4]
[328606338,1717602652655,-500.0,0.00028578,4]
[328606339,1717602652664,-500.0,0.00028578,4]
[328606340,1717602652674,-234.16646395,0.00028578,4]
[328606341,1717602652684,-150.0,0.00028578,4]
[328606342,1717602652694,-150.0,0.00028578,4]
[328606343,1717602652703,-155.39228239,0.00028578,4]
[328606344,1717602652712,-500.0,0.00028578,4]
[328606345,1717602652724,-500.0,0.00028578,4]
[328606346,1717602652733,-332.18887961,0.00028578,4]
[328606347,1717602652742,-525.98259246,0.00028578,4]
[328606348,1717602652751,-500.0,0.00028578,4]
[328606349,1717602652761,-500.0,0.00028578,4]
[328606350,1717602652772,-559.12,0.00028578,4]
[328606351,1717602652784,-500.0,0.00028578,4]
[328606352,1717602652794,-500.0,0.00028578,4]
[328606353,1717602652805,-500.0,0.00028578,4]
[328606354,1717602652815,-500.0,0.00028578,4]
[328606355,1717602652825,-500.0,0.00028578,4]
[328606356,1717602652834,-500.0,0.00028578,4]
[328606357,1717602652843,-500.0,0.00028578,4]
[328606358,1717602652852,-500.0,0.00028578,4]
[328606359,1717602652863,-500.0,0.00028578,4]
[328606360,1717602652872,-500.0,0.00028578,4]
[328606361,1717602652881,-554.62531967,0.00028578,4]
[328606362,1717602652890,-500.0,0.00028578,4]
[328606363,1717602652900,-500.0,0.00028578,4]
[328606364,1717602652910,-500.0,0.00028578,4]
[328606365,1717602652919,-500.0,0.00028578,4]
[328606366,1717602652929,-500.0,0.00028578,4]
[328606367,1717602652938,-340.52037839,0.00028578,4]
[328606368,1717602652947,-500.0,0.00028578,4]
[328606369,1717602652957,-182.24462506,0.00028578,4]
[328606370,1717602652966,-500.0,0.00028578,4]
[328606371,1717602652979,-379.50601208,0.00028578,4]
[328606372,1717602652988,-500.0,0.00028578,4]
[328606373,1717602652998,-500.0,0.00028578,4]
[328606374,1717602653008,-500.0,0.00028578,4]
[328606375,1717602653018,-500.0,0.00028578,4]
[328606376,1717602653028,-500.0,0.00028578,4]
[328606377,1717602653037,-500.0,0.00028578,4]
[328606378,1717602653047,-500.0,0.00028578,4]
[328606379,1717602653057,-445.98061812,0.00028578,4]
[328606380,1717602653067,-500.0,0.00028578,4]
[328606381,1717602653076,-500.0,0.00028578,4]
[328606382,1717602653086,-238.95859025,0.00028578,4]
[328606383,1717602653096,-500.0,0.00028578,4]
[328606384,1717602653106,-542.72708109,0.00028578,4]
[328606385,1717602653117,-500.0,0.00028578,4]
[328606386,1717602653128,-397.10157867,0.00028578,4]
[328606387,1717602653138,-535.18764088,0.00028578,4]
[328606388,1717602653148,-500.0,0.00028578,4]
[328606389,1717602653158,-500.0,0.00028578,4]
[328606390,1717602653168,-500.0,0.00028578,4]
[328606391,1717602653178,-500.0,0.00028578,4]
[328606392,1717602653187,-500.0,0.00028578,4]
[328606393,1717602653197,-151.0,0.00028578,7]
[328606394,1717602653206,-500.0,0.00028578,4]
[328606395,1717602653215,-151.0,0.00028578,7]
[328606396,1717602653227,-500.0,0.00028578,4]
[328606397,1717602653237,-627.6950272,0.00028578,4]
[328606398,1717602653246,-500.0,0.00028578,4]